bitfinex/quotes_ETHUSD_20241106
["timestamp","ask_amount","ask_price","bid_price","bid_amount"]
[1730863207624,0.8115,2597.8,2595.9,0.01]
[1730863207829,0.466077,2597.7,2596.0,0.16111022]
[1730863207991,3.8497,2597.6,2596.1,0.16111022]
[1730863208200,3.85106,2596.7,2596.2,0.16111022]
[1730863208423,3.85112,2596.7,2595.7,0.16111022]
[1730863208599,3.85136,2596.5,2595.6,0.16285597]
[1730863208920,0.55,2596.3,2595.6,0.16285597]
[1730863209125,0.385136,2596.4,2595.6,0.16285597]
[1730863209126,0.55,2596.4,2595.6,0.16285597]
[1730863209372,3.85173,2596.3,2595.6,0.16285597]
[1730863209500,3.85148,2596.4,2595.6,0.16285597]
[1730863209695,0.55,2596.2,2595.6,0.16285597]
[1730863209897,0.55,2596.0,2595.6,0.16285597]
[1730863210637,3.85241,2595.8,2595.6,0.11285597]
[1730863210850,0.1628,2596.5,2595.6,0.11285597]
[1730863210851,3.55,2595.7,2595.6,0.11285597]
[1730863211142,0.55,2595.7,2595.6,0.06285597]
[1730863211949,4.56532,2595.7,2595.2,0.0071064]
[1730863212201,4.56532,2595.7,2594.0,0.7553]
[1730863212202,0.55,2595.1,2594.0,0.7553]
[1730863213034,3.55,2595.3,2594.0,0.7553]
[1730863213553,0.55,2595.2,2594.0,0.7553]
[1730863213854,0.55,2595.4,2594.0,0.7553]
[1730863214018,1.290269,2595.4,2594.0,0.7553]
[1730863214215,0.55,2595.4,2594.0,0.7553]
[1730863214529,3.85171,2596.3,2593.1,0.36963632]
[1730863214530,3.0,2596.0,2594.3,0.7745]
[1730863214744,3.0,2595.7,2594.3,0.7745]
[1730863214946,3.85206,2596.1,2594.3,0.7745]
[1730863215257,3.85282,2595.5,2594.3,0.7745]
[1730863215456,3.85257,2595.7,2594.3,0.7745]
[1730863215627,0.55,2595.6,2594.3,0.7745]
[1730863215827,4.40238,2595.8,2594.3,0.7745]
[1730863216015,4.01471,2596.2,2594.3,0.7845]
[1730863216215,3.85251,2595.8,2594.3,0.7745]
[1730863216716,0.401471,2596.1,2594.5,0.7745]
[1730863216949,0.1628,2596.7,2594.5,0.7745]
[1730863217157,3.85193,2596.1,2594.5,0.7745]
[1730863217527,0.01,2596.6,2594.5,0.7745]
[1730863217726,0.1628,2596.7,2594.5,0.7745]
[1730863217727,0.01,2596.2,2594.5,0.7745]
[1730863218059,3.85133,2596.5,2594.5,0.7745]
[1730863218060,0.55,2595.5,2594.5,0.7745]
[1730863218365,1.56304278,2596.5,2594.5,0.7745]
[1730863218366,3.55,2595.7,2594.5,0.7745]
[1730863218876,0.55,2595.8,2594.5,0.7745]
[1730863219179,0.55,2595.6,2594.5,0.7745]
[1730863219466,0.385133,2596.4,2594.7,0.7745]
[1730863219665,3.85232,2595.9,2594.7,0.7745]
[1730863220429,3.85208,2596.0,2594.7,0.7745]
[1730863220641,3.85224,2595.9,2594.7,0.7745]
[1730863220841,4.40267,2595.7,2594.7,0.7745]
[1730863221171,0.385224,2595.8,2594.7,0.7745]
[1730863221325,3.0,2596.0,2594.7,0.7745]
[1730863221326,0.55,2595.9,2594.7,0.7745]
[1730863221529,3.85138,2596.5,2594.7,0.7745]
[1730863221530,4.01388,2596.7,2594.7,0.7745]
[1730863221735,4.01388,2596.7,2594.6,0.01]
[1730863221736,4.0133,2597.1,2595.0,0.7745]
[1730863221923,2.57540997,2597.5,2595.4,0.7745]
[1730863221924,0.325656,2597.5,2595.4,0.7745]
[1730863222234,3.8508,2596.9,2595.6,0.7745]
[1730863222436,4.23598,2596.8,2595.6,0.7745]
[1730863222637,3.85144,2596.5,2595.6,0.7745]
[1730863222840,4.01394,2596.7,2595.6,0.7745]
[1730863223042,0.1628,2596.7,2595.6,0.7745]
[1730863223256,3.85159,2596.4,2595.6,0.7745]
[1730863223427,0.38508,2596.8,2595.6,0.7745]
[1730863223628,0.1728,2597.1,2595.6,0.7745]
[1730863223841,3.85144,2596.5,2595.6,0.7745]
[1730863224162,3.85119,2596.6,2595.6,0.7745]
[1730863224163,3.85148,2596.4,2595.6,0.7745]
[1730863224406,3.85119,2596.6,2595.6,0.7745]
[1730863224578,4.236459,2596.5,2595.6,0.7745]
[1730863224736,0.55,2596.3,2595.6,0.7745]
[1730863224929,3.55,2595.8,2595.1,0.7745]
[1730863225255,0.55,2595.8,2595.1,0.7745]
[1730863225568,3.55,2596.1,2595.1,0.7745]
[1730863225727,0.55,2595.8,2595.1,0.7745]
[1730863226364,0.55,2595.9,2595.1,0.7745]
[1730863226677,0.55,2596.0,2595.1,0.7745]
[1730863227169,0.55,2596.0,2595.2,0.15904251]
[1730863227743,0.55,2596.0,2595.3,0.15904251]
[1730863227947,0.55,2595.8,2595.2,0.15904251]
[1730863228152,0.55,2595.8,2595.3,0.15904251]
[1730863228352,0.55,2595.8,2595.2,0.15904251]
[1730863228569,0.55,2595.8,2595.3,0.15904251]
[1730863228767,0.55,2595.8,2595.2,0.15904251]
[1730863229197,0.55,2595.6,2595.2,0.15904251]
[1730863229685,0.55,2595.8,2595.2,0.15904251]
[1730863230645,3.0,2596.4,2595.3,0.15904251]
[1730863230849,3.0,2596.1,2595.4,0.15904251]
[1730863231093,3.0,2596.1,2595.2,0.15904251]
[1730863231386,0.685189,2596.0,2595.3,0.15904251]
[1730863231692,0.685189,2596.0,2595.1,0.7745]
[1730863231693,3.85079,2596.9,2595.4,0.15904251]
[1730863231995,3.85122,2596.6,2595.5,1.19813999]
[1730863232175,0.05518181,2596.8,2595.6,0.15904251]
[1730863232176,3.85178,2596.3,2595.6,0.15904251]
[1730863232350,3.85176,2596.3,2595.5,0.7846]
[1730863232553,3.8515,2596.4,2595.5,0.7846]
[1730863232750,3.85122,2596.6,2595.5,0.7846]
[1730863232989,3.0,2596.3,2595.5,0.7846]
[1730863233291,2.41581389,2597.3,2596.4,0.01]
[1730863233504,3.84892,2598.2,2596.7,0.7846]
[1730863233646,0.41202616,2598.9,2596.8,2.23497408]
[1730863233851,3.84911,2598.0,2596.9,0.15432919]
[1730863234095,3.84996,2597.5,2597.0,0.15432919]
[1730863234390,2.81660014,2597.4,2596.7,0.7846]
[1730863234552,3.85016,2597.3,2596.7,0.7846]
[1730863234952,3.85016,2597.3,2596.4,0.15432919]
[1730863235150,4.235006,2597.4,2596.5,0.15432919]
[1730863235488,4.235006,2597.4,2596.3,0.7846]
[1730863235489,0.55,2597.3,2596.6,0.15432919]
[1730863235727,0.55,2597.3,2596.3,1.04177422]
[1730863235728,0.55,2597.3,2596.7,0.15432919]
[1730863236021,0.55,2597.3,2596.8,0.15432919]
[1730863236171,0.55,2597.2,2596.5,0.15432919]
[1730863236372,0.55,2597.2,2596.4,0.24695019]
[1730863236373,0.55,2597.2,2596.6,0.15432919]
[1730863236604,0.990013,2597.2,2596.7,0.15432919]
[1730863236813,0.990013,2597.2,2596.3,1.04177422]
[1730863236814,0.990013,2597.2,2596.5,0.15432919]
[1730863236984,0.55,2597.0,2596.4,0.15432919]
[1730863237167,0.990013,2597.2,2596.5,0.15432919]
[1730863237374,0.990013,2597.2,2596.6,0.15432919]
[1730863237600,0.990013,2597.2,2596.7,0.15432919]
[1730863237911,0.990013,2597.2,2596.8,0.15432919]
[1730863238112,3.990013,2597.2,2596.5,0.15432919]
[1730863238321,3.55,2597.0,2596.6,0.15432919]
[1730863238516,3.55,2597.0,2596.2,0.24695019]
[1730863238517,3.0,2596.8,2596.4,0.15432919]
[1730863238676,0.55,2596.7,2596.0,0.40127938]
[1730863238876,0.55,2596.7,2596.1,0.15432919]
[1730863238877,1.290077,2596.7,2596.1,0.15432919]
[1730863239096,3.55,2596.5,2596.2,0.15432919]
[1730863239376,3.85128,2596.6,2595.5,0.30788917]
[1730863239377,3.85178,2596.2,2596.1,0.15432919]
[1730863239603,3.55,2596.3,2595.6,0.24695019]
[1730863239604,3.55,2595.9,2595.6,0.15432919]
[1730863239816,7.40252,2595.7,2595.6,0.15432919]
[1730863240097,0.55,2595.5,2595.1,0.15432919]
[1730863240275,0.55,2595.7,2595.2,0.15432919]
[1730863240493,0.55,2595.7,2595.3,0.15432919]
[1730863240675,0.55,2595.7,2595.4,0.15432919]
[1730863240676,1.345223,2595.7,2595.4,0.15432919]
[1730863240872,1.345223,2595.7,2595.1,0.15432919]
[1730863241089,4.345223,2595.7,2595.2,0.15432919]
[1730863241299,0.55,2595.8,2595.3,0.15432919]
[1730863241499,0.55,2595.8,2595.4,0.15432919]
[1730863241724,0.55,2595.8,2595.5,0.15432919]
[1730863241917,0.55,2596.0,2595.2,0.15432919]
[1730863242219,0.55,2595.8,2595.3,0.15432919]
[1730863242376,0.55,2595.8,2594.9,1.04177422]
[1730863242377,0.55,2595.8,2595.4,0.15432919]
[1730863242583,0.55,2595.8,2595.5,0.15432919]
[1730863242782,0.55,2595.8,2595.6,0.15432919]
[1730863243118,0.55,2595.8,2595.2,0.40127938]
[1730863243329,7.40218,2596.0,2594.9,0.7846]
[1730863243528,3.85252,2595.8,2595.1,0.24658144]
[1730863243684,3.55,2595.7,2595.2,0.15409872]
[1730863243880,3.8516,2596.4,2595.4,0.8073]
[1730863244229,0.01,2596.7,2595.4,0.8073]
[1730863244230,3.85134,2596.5,2595.5,0.15409872]
[1730863244393,3.85267,2595.6,2595.2,0.24646296]
[1730863244583,3.85243,2595.8,2594.9,0.25691701]
[1730863244787,3.85226,2595.9,2594.7,0.25691701]
[1730863245019,3.85195,2596.1,2594.8,0.25691701]
[1730863245219,0.385195,2596.0,2594.9,0.8073]
[1730863245431,3.55,2595.9,2594.9,1.06421701]
[1730863245719,0.55,2595.9,2595.0,0.25691701]
[1730863245918,1.290195,2595.9,2594.9,1.06421701]
[1730863246231,3.85304,2595.4,2594.9,0.8073]
[1730863246521,0.55,2595.2,2594.9,0.8073]
[1730863246716,3.0,2595.3,2594.9,0.8073]
[1730863246891,0.55,2595.4,2594.9,0.8073]
[1730863247222,3.55,2595.4,2594.9,0.8073]
[1730863247395,0.55,2595.2,2594.9,0.8073]
[1730863247889,0.55,2595.3,2594.9,0.8073]
[1730863248089,0.55,2595.4,2594.9,0.8073]
[1730863248314,1.3178,2595.4,2594.4,0.25683629]
[1730863248626,0.55,2594.9,2594.1,1.06413629]
[1730863248831,3.55,2594.9,2594.1,0.8073]
[1730863249308,0.55,2595.0,2594.1,0.8073]
[1730863249513,0.55,2595.2,2594.1,0.8073]
[1730863249716,0.55,2595.2,2594.1,1.06413629]
[1730863249717,1.290297,2595.2,2594.1,1.06413629]
[1730863250021,3.854,2594.8,2593.9,0.0630306]
[1730863250225,0.55,2595.0,2593.9,0.0630306]
[1730863250429,0.7678,2595.1,2593.9,0.0630306]
[1730863250430,3.55,2594.8,2593.9,0.0630306]
[1730863250791,0.55,2595.0,2593.9,0.0630306]
[1730863250990,0.7678,2595.1,2593.3,0.8073]
[1730863250991,3.55,2593.8,2593.3,0.8073]
[1730863251286,3.0,2594.0,2593.3,0.8073]
[1730863251489,3.55,2593.6,2592.8,0.8073]
[1730863251733,0.55,2593.6,2592.8,0.8073]
[1730863251888,0.55,2593.9,2592.8,0.8073]
[1730863252087,3.55,2594.6,2593.0,0.8073]
[1730863252294,0.55,2594.1,2593.0,1.06407597]
[1730863252836,0.55,2594.1,2592.6,0.0630306]
[1730863252837,0.55,2594.8,2593.5,1.06407597]
[1730863252990,1.675733,2594.8,2593.5,0.8073]
[1730863253190,1.125733,2594.8,2593.6,0.8073]
[1730863253424,3.85396,2594.8,2593.6,1.05003287]
[1730863253621,3.85396,2594.8,2593.6,0.8073]
[1730863253913,3.85402,2594.7,2593.6,0.8073]
[1730863254107,3.85377,2594.9,2593.6,0.8073]
[1730863254307,3.0,2594.6,2593.6,0.8073]
[1730863254646,0.55,2594.7,2593.6,0.8073]
[1730863254930,3.0,2594.6,2593.6,0.8073]
[1730863255098,0.55,2594.7,2593.6,0.8073]
[1730863255428,4.62105,2595.3,2593.6,0.8073]
[1730863255429,3.7678,2595.3,2593.6,0.8173]
[1730863255630,3.7678,2595.3,2593.6,1.06003287]
[1730863255796,7.62093,2595.3,2593.8,0.24273287]
[1730863256133,0.7678,2595.3,2593.8,0.8073]
[1730863256439,3.85206,2596.1,2594.2,0.8073]
[1730863256618,3.85229,2595.9,2594.4,0.8073]
[1730863256816,3.85229,2595.9,2594.5,0.14538269]
[1730863257023,3.85261,2595.7,2594.6,0.14538269]
[1730863257190,3.85261,2595.7,2594.5,0.14538269]
[1730863257191,3.85292,2595.5,2594.5,0.14538269]
[1730863257390,4.238262,2595.4,2594.5,0.14538269]
[1730863257630,0.385292,2595.4,2594.4,0.8073]
[1730863257934,3.55,2594.7,2594.3,0.14538269]
[1730863258119,0.55,2594.7,2594.0,0.8073]
[1730863258340,0.55,2594.8,2594.0,0.8073]
[1730863258649,3.85357,2595.0,2594.0,0.8073]
[1730863258650,3.55,2595.0,2594.0,0.8073]
[1730863258953,0.55,2594.8,2594.1,0.14538269]
[1730863259256,3.0,2595.2,2594.1,0.14538269]
[1730863259552,3.86283,2595.5,2594.0,0.8073]
[1730863259553,0.55,2594.9,2594.0,0.8073]
[1730863259753,0.55,2594.9,2594.1,0.14538269]
[1730863259958,3.7678,2595.4,2594.2,0.14524507]
[1730863260122,0.55,2595.4,2594.3,0.93134507]
[1730863260311,3.85331,2595.2,2594.4,0.14524507]
[1730863260509,0.01,2595.7,2594.4,0.14524507]
[1730863260510,0.385331,2595.1,2594.4,0.14524507]
[1730863260713,3.85256,2595.7,2594.3,0.7861]
[1730863260946,3.85234,2595.9,2594.4,0.14524507]
[1730863261168,3.85199,2596.1,2594.5,0.93134507]
[1730863261449,5.02179007,2596.3,2594.6,0.14524507]
[1730863261450,3.85239,2595.8,2594.6,0.14524507]
[1730863261673,3.85209,2596.0,2594.5,0.7861]
[1730863261674,0.01,2595.6,2594.5,0.7861]
[1730863261815,3.85358,2595.0,2594.5,0.7861]
[1730863262015,3.85308,2595.4,2594.5,0.7861]
[1730863262253,3.0,2595.3,2594.5,0.7861]
[1730863262466,3.0,2595.0,2594.5,0.7861]
[1730863262759,3.85356,2595.0,2594.5,0.7861]
[1730863262914,3.0,2594.9,2594.5,0.7861]
[1730863263115,0.685356,2594.8,2594.1,0.7861]
[1730863263360,3.85464,2594.3,2593.7,0.9311443]
[1730863263522,3.01,2595.3,2593.7,0.7861]
[1730863263725,0.55,2595.0,2593.8,0.1450443]
[1730863263918,0.55,2595.0,2593.7,0.7861]
[1730863263919,3.55,2594.7,2593.7,0.7861]
[1730863264128,3.55,2594.5,2593.8,0.14513755]
[1730863264422,4.40421,2594.6,2593.7,0.7861]
[1730863264621,0.55,2594.4,2593.7,0.93123755]
[1730863264848,0.55,2594.4,2593.8,0.14513755]
[1730863265018,0.55,2594.4,2593.9,0.14513755]
[1730863265351,0.55,2594.7,2594.0,0.14513755]
[1730863265527,0.55,2594.5,2593.8,0.14513755]
[1730863265739,0.55,2594.5,2593.9,0.14513755]
[1730863265927,3.55,2594.5,2593.8,0.14513755]
[1730863266273,4.62064,2595.5,2593.9,0.14513755]
[1730863266423,4.62064,2595.5,2593.8,0.24224434]
[1730863266424,3.85321,2595.3,2594.0,1.4054664]
[1730863266622,3.85321,2595.3,2594.1,0.37738189]
[1730863266838,3.85264,2595.7,2594.3,0.7861]
[1730863267038,3.85264,2595.7,2594.4,0.14513755]
[1730863267261,1.028085,2595.3,2594.5,0.14513755]
[1730863267452,1.5161765,2595.3,2594.6,0.14513755]
[1730863267765,1.5161765,2595.3,2594.4,0.14532469]
[1730863267766,3.8543,2594.5,2594.4,0.14532469]
[1730863267968,3.85448,2594.4,2593.9,0.37756903]
[1730863268128,3.0,2594.3,2594.0,0.14532469]
[1730863268335,3.0,2594.3,2592.8,0.01]
[1730863268336,6.85475,2594.2,2594.1,0.14532469]
[1730863268544,3.8549,2594.1,2594.0,0.14532469]
[1730863268743,4.675965,2594.1,2593.7,0.14532469]
[1730863268948,0.55,2594.0,2593.8,0.14532469]
[1730863269145,3.0,2594.2,2593.3,0.7861]
[1730863269349,3.85446,2594.4,2593.5,0.24274165]
[1730863269639,3.0,2594.3,2593.6,0.91242397]
[1730863269825,3.0,2594.4,2593.7,0.37849229]
[1730863270033,3.0,2594.7,2593.8,0.66968232]
[1730863270333,3.0,2594.4,2593.3,0.7861]
[1730863270532,3.0,2594.6,2593.3,0.7861]
[1730863270733,0.7678,2594.9,2593.3,0.7861]
[1730863270734,3.0,2594.8,2593.3,0.7861]
[1730863271070,3.85341,2595.1,2593.3,0.7861]
[1730863271247,3.0,2594.5,2593.3,0.7861]
[1730863271563,3.0,2594.4,2593.5,0.23625436]
[1730863271726,3.0,2594.4,2593.6,0.65189886]
[1730863272040,0.55,2593.8,2593.7,0.36844032]
[1730863272240,3.55,2593.8,2593.7,0.36844032]
[1730863272446,0.55,2593.9,2593.7,0.36844032]
[1730863272739,0.55,2593.8,2593.4,0.28345854]
[1730863273076,0.55,2594.1,2593.5,0.88861487]
[1730863273283,3.55,2593.9,2593.6,0.65236051]
[1730863273439,3.55,2593.9,2593.3,0.7861]
[1730863273440,0.55,2593.9,2593.7,0.36890197]
[1730863273773,0.905,2593.9,2593.8,0.36890197]
[1730863274138,0.905,2593.9,2593.3,0.7861]
[1730863274139,3.55,2593.6,2593.4,0.28345854]
[1730863274345,3.55,2593.6,2593.3,0.28345854]
[1730863274646,3.55,2593.6,2593.4,0.28345854]
[1730863274830,3.55,2593.6,2593.2,0.28345854]
[1730863275370,0.55,2593.7,2593.3,0.28345854]
[1730863275567,1.290521,2593.7,2593.4,0.28345854]
[1730863275776,1.290521,2593.7,2592.9,0.7861]
[1730863275777,7.40609,2593.3,2593.2,0.28421438]
[1730863275943,0.55,2592.9,2592.6,0.0630306]
[1730863276270,0.55,2593.1,2592.6,0.0630306]
[1730863276470,0.55,2593.5,2592.6,0.0630306]
[1730863276769,4.40669,2592.9,2592.6,0.0630306]
[1730863277040,0.55,2592.7,2592.6,0.0630306]
[1730863277349,4.40698,2592.7,2592.6,0.0630306]
[1730863277545,0.55,2592.7,2592.6,0.0630306]
[1730863277744,7.40698,2592.7,2592.6,0.0630306]
[1730863278057,0.55,2592.7,2592.6,0.0630306]
[1730863278257,3.55,2592.8,2592.6,0.0630306]
[1730863278473,0.55,2593.1,2592.6,0.0630306]
[1730863279067,0.55,2592.9,2592.6,0.0630306]
[1730863279267,0.55,2592.7,2592.6,0.0630306]
[1730863279860,3.0,2593.2,2592.6,0.0630306]
[1730863279861,0.55,2592.9,2592.6,0.0630306]
[1730863280153,3.0,2592.9,2592.6,0.0630306]
[1730863280348,3.85683,2592.8,2592.6,0.0630306]
[1730863280582,6.8567,2592.9,2592.6,0.0630306]
[1730863280790,1.071334,2592.8,2592.6,0.0630306]
[1730863280987,6.85698,2592.7,2592.6,0.0630306]
[1730863281157,7.40698,2592.7,2592.6,0.0630306]
[1730863281856,7.40698,2592.7,2591.7,0.7861]
[1730863281857,3.56,2592.7,2591.7,0.23659445]
[1730863282055,3.56,2592.7,2591.3,0.8491306]
[1730863282056,0.55,2592.0,2591.6,0.23659445]
[1730863282257,0.55,2592.5,2591.7,0.7861]
[1730863282459,0.55,2592.5,2591.3,0.0730306]
[1730863282460,3.0,2593.1,2592.2,0.7861]
[1730863282667,0.7778,2594.0,2592.4,0.23659445]
[1730863282871,0.7778,2594.0,2592.5,0.23659445]
[1730863282872,3.85567,2593.6,2592.5,0.23659445]
[1730863283103,0.385567,2593.5,2592.5,0.23659445]
[1730863283284,3.8554,2593.8,2592.4,0.23629941]
[1730863283285,0.01,2593.8,2592.4,0.23629941]
[1730863283467,3.85562,2593.7,2592.5,0.23629941]
[1730863283668,0.01,2593.8,2592.6,0.51966466]
[1730863283870,3.85578,2593.6,2592.5,0.23629941]
[1730863284100,3.85636,2593.2,2592.6,0.28336525]
[1730863284273,3.0,2593.1,2592.7,0.22669461]
[1730863284476,3.0,2593.1,2592.8,0.22669461]
[1730863284786,0.55,2592.8,2592.6,0.22669461]
[1730863284989,0.55,2592.8,2592.7,0.22669461]
[1730863285295,0.55,2593.0,2592.7,0.22669461]
[1730863285506,0.55,2592.8,2592.5,0.22669461]
[1730863285662,0.55,2592.8,2592.6,0.22669461]
[1730863285863,0.55,2592.6,2592.3,0.22682856]
[1730863286209,4.40726,2592.6,2592.4,0.36858797]
[1730863286362,0.55,2592.4,2592.2,0.7861]
[1730863286567,0.55,2592.4,2591.9,0.7861]
[1730863286872,0.55,2592.4,2592.3,0.2268588]
[1730863287080,0.55,2592.6,2592.3,0.36863004]
[1730863287292,3.0,2592.5,2592.4,0.36863004]
[1730863287462,0.55,2592.5,2592.4,0.36863004]
[1730863287663,0.55,2592.6,2592.4,0.36863004]
[1730863287863,0.55,2592.6,2592.5,0.36863004]
[1730863288402,3.55,2592.6,2592.5,0.14177124]
[1730863288707,7.8361965,2592.6,2592.5,0.14177124]
[1730863289107,3.0,2592.3,2592.1,0.22702309]
[1730863289314,0.55,2592.3,2592.2,0.36889285]
[1730863289667,0.55,2592.6,2592.2,0.36889285]
[1730863289910,0.55,2592.6,2591.8,0.23637603]
[1730863289911,0.55,2592.8,2592.3,0.36889285]
[1730863290099,0.55,2592.8,2591.4,1.06501421]
[1730863290100,0.55,2592.6,2592.4,0.36900435]
[1730863290404,7.40713,2592.6,2592.5,0.1419152]
[1730863290625,0.55,2592.6,2592.5,0.1419152]
[1730863290900,0.55,2592.6,2592.5,0.36909617]
[1730863291105,4.056,2593.7,2592.5,0.36909617]
[1730863291106,0.7636,2593.6,2592.5,0.65310341]
[1730863291265,0.40193474,2593.4,2592.6,0.65310341]
[1730863291463,0.40193474,2593.4,2592.7,0.65310341]
[1730863291679,3.85628,2593.2,2592.8,0.64517278]
[1730863291875,0.385628,2593.1,2592.9,0.36909617]
[1730863292114,4.242058,2593.1,2593.0,0.1419152]
[1730863292271,4.242058,2593.1,2592.4,0.27620902]
[1730863292272,3.85722,2592.6,2592.4,0.27620902]
[1730863292596,4.40757,2592.3,2592.2,0.23661599]
[1730863292802,3.55,2591.9,2591.3,0.8795306]
[1730863292997,3.55,2592.1,2591.3,0.8795306]
[1730863293167,4.40789,2592.1,2591.3,0.8795306]
[1730863293375,0.55,2592.2,2591.3,0.8795306]
[1730863293678,0.85,2592.2,2591.3,0.8795306]
[1730863294271,3.85,2592.2,2591.3,0.8795306]
[1730863295004,3.85,2592.2,2589.7,0.09697107]
[1730863295005,3.85817,2591.9,2590.5,0.8165]
[1730863295171,0.55,2591.4,2590.5,0.8165]
[1730863295370,3.0,2591.1,2590.5,0.8165]
[1730863295675,0.55,2591.7,2590.5,0.8265]
[1730863296419,0.55,2591.8,2590.5,0.8265]
[1730863296632,0.3,2592.2,2590.8,0.01]
[1730863296935,0.55,2592.1,2590.9,0.8165]
[1730863297110,4.40827,2591.9,2590.9,0.8165]
[1730863297424,4.40858,2591.7,2590.9,0.8165]
[1730863297718,4.40849,2591.7,2590.9,0.8165]
[1730863297933,6.85868,2591.6,2591.0,0.23086872]
[1730863298096,4.4088,2591.5,2591.0,0.23086872]
[1730863298294,3.0,2591.4,2591.1,0.23086872]
[1730863298616,4.096076,2591.4,2591.0,0.23086872]
[1730863298818,1.096076,2591.4,2591.2,1.04736872]
[1730863298983,1.096076,2591.4,2591.2,0.8165]
[1730863299382,4.62527,2592.4,2591.2,0.8165]
[1730863299598,0.8165,2592.1,2591.6,0.23095817]
[1730863299831,0.8165,2592.1,2591.2,0.8165]
[1730863299997,3.85753,2592.4,2591.8,0.2308831]
[1730863300193,3.85761,2592.3,2592.0,0.2308831]
[1730863300525,3.85774,2592.2,2591.8,0.2308831]
[1730863300740,3.85865,2591.6,2591.3,0.2308831]
[1730863301023,0.55,2591.9,2591.4,0.27757873]
[1730863301227,0.55,2591.9,2591.2,1.0473831]
[1730863301228,0.55,2591.9,2591.5,0.27757873]
[1730863301387,3.55,2591.9,2591.6,0.27757873]
[1730863301588,0.7678,2593.1,2591.8,0.2308831]
[1730863301781,0.7678,2593.1,2590.4,0.01]
[1730863301782,3.85844,2591.8,2590.4,0.01]
[1730863301986,0.8165,2592.8,2590.2,0.8165]
[1730863301987,3.85891,2591.4,2590.2,0.8165]
[1730863302224,0.385844,2591.7,2590.7,0.01]
[1730863302529,3.85747,2592.4,2590.8,0.8165]
[1730863302825,0.01,2592.4,2591.2,0.8165]
[1730863303041,3.0,2592.0,2591.3,0.22205023]
[1730863303336,3.0,2591.4,2590.8,0.8165]
[1730863303535,3.86042,2590.4,2589.9,0.8165]
[1730863303694,3.0,2590.7,2589.3,0.8165]
[1730863303695,6.86085,2590.1,2589.3,0.8165]
[1730863303895,4.922142,2590.1,2589.3,0.8165]
[1730863304135,1.922142,2590.1,2589.3,0.8165]
[1730863304438,1.922142,2590.1,2588.7,0.0630306]
[1730863304439,9.550792,2590.1,2588.9,0.7526]
[1730863304591,4.922142,2590.1,2590.0,0.20209832]
[1730863304793,1.922142,2590.1,2590.0,0.20209832]
[1730863304992,0.55,2590.4,2590.0,0.20209832]
[1730863305222,3.55,2590.4,2590.1,0.13906772]
[1730863305401,0.55,2591.3,2590.2,0.13906772]
[1730863305598,3.86,2590.7,2590.3,0.13906772]
[1730863305846,0.55,2590.6,2590.4,0.13906772]
[1730863305992,0.55,2590.6,2590.5,0.13906772]
[1730863306193,3.55,2590.8,2590.5,0.13906772]
[1730863306544,0.55,2590.6,2590.0,0.0630306]
[1730863306828,0.55,2590.6,2590.1,0.37051238]
[1730863307139,0.4020534,2590.9,2590.3,0.7526]
[1730863307436,0.7678,2591.8,2590.7,0.23159765]
[1730863307589,0.40198822,2591.0,2590.8,0.13891473]
[1730863307791,3.86847,2591.7,2590.9,0.13891473]
[1730863307792,3.85907,2591.3,2590.9,0.13891473]
[1730863307993,3.85907,2591.3,2591.0,0.13891473]
[1730863308235,5.03286013,2591.3,2591.1,0.13891473]
[1730863308387,1.17379013,2591.3,2591.2,0.13891473]
[1730863308588,3.40200413,2591.3,2591.2,0.13891473]
[1730863308792,0.40200413,2591.3,2591.2,0.13891473]
[1730863309027,0.7678,2592.3,2591.2,1.12311238]
[1730863309236,3.85848,2591.7,2591.3,0.13891473]
[1730863309409,0.7678,2592.3,2591.4,0.13891473]
[1730863309410,0.4019854,2591.8,2591.4,0.13891473]
[1730863309593,3.85847,2591.7,2591.5,0.13891473]
[1730863309793,0.385847,2591.6,2590.5,0.7526]
[1730863310027,3.8591,2591.3,2590.8,0.23122222]
[1730863310321,3.0,2591.0,2590.9,0.13865345]
[1730863310527,0.685946,2591.0,2590.9,0.13865345]
[1730863310794,3.0,2591.0,2590.9,0.13865345]
[1730863311002,7.40951,2591.0,2590.9,0.13865345]
[1730863311630,3.55,2590.5,2590.0,0.29425282]
[1730863311831,0.55,2590.5,2590.0,0.0630306]
[1730863311998,3.55,2590.1,2590.0,0.0630306]
[1730863312193,3.0,2590.7,2590.0,0.0630306]
[1730863312194,3.86002,2590.7,2590.0,0.0630306]
[1730863312401,7.796122,2590.6,2590.0,0.0630306]
[1730863312625,3.86056,2590.3,2590.0,0.0630306]
[1730863312945,7.41085,2590.1,2590.0,0.0630306]
[1730863313242,8.17865,2590.1,2590.0,0.0630306]
[1730863313597,0.55,2590.1,2590.0,0.0630306]
[1730863313792,0.55,2590.3,2590.0,0.28052264]
[1730863313996,3.8592,2591.3,2590.0,0.28052264]
[1730863313997,3.85952,2591.0,2590.1,0.21749204]
[1730863314226,0.771895,2591.0,2590.2,0.44871426]
[1730863314433,3.85943,2591.1,2590.2,0.44871426]
[1730863314434,3.85943,2591.1,2590.3,0.21749204]
[1730863314634,3.85943,2591.1,2590.4,0.21749204]
[1730863314800,0.7678,2591.4,2590.5,0.21749204]
[1730863314998,0.7678,2591.4,2590.0,0.0630306]
[1730863314999,3.85993,2590.8,2590.6,0.21749204]
[1730863315333,3.85993,2590.8,2590.7,0.21739721]
[1730863315636,4.40993,2590.8,2590.7,0.21739721]
[1730863315929,4.41017,2590.6,2590.3,0.21740438]
[1730863316131,4.41017,2590.6,2590.0,0.0630306]